bitfinex-derivatives/quotes_ETHF0:USTF0_20250110
["timestamp","ask_amount","ask_price","bid_price","bid_amount"]
[1736517070889,3.2078,3235.5,3235.1,3.2078]
[1736517071190,0.77255,3236.2,3235.1,3.2078]
[1736517071191,0.30908,3235.6,3235.1,3.2078]
[1736517071489,0.77255,3236.2,3235.1,3.2078]
[1736517071490,0.3091,3235.4,3235.1,3.2078]
[1736517071679,3.2078,3235.5,3235.1,3.2078]
[1736517071881,3.2078,3235.5,3234.9,3.36901977]
[1736517072083,0.30916,3234.7,3234.4,3.36901977]
[1736517072278,0.30916,3234.7,3233.9,6.6872]
[1736517072279,3.2078,3234.7,3233.9,5.47501977]
[1736517072492,0.30918,3234.5,3233.9,5.47501977]
[1736517072787,3.2078,3234.2,3233.9,5.47501977]
[1736517073094,3.2078,3234.2,3233.3,3.2078]
[1736517073282,0.77296,3234.5,3233.3,3.2078]
[1736517073283,0.30928,3233.5,3233.3,3.2078]
[1736517073483,0.30928,3233.4,3233.3,3.2078]
[1736517073884,3.2078,3233.4,3233.0,40.8]
[1736517074089,2.106,3234.7,3233.0,40.8]
[1736517074090,3.2078,3233.8,3233.0,40.8]
[1736517074291,2.106,3234.7,3233.2,0.3093]
[1736517074292,3.2078,3234.2,3233.2,0.3093]
[1736517074586,3.2078,3234.2,3233.4,3.36901977]
[1736517074890,3.2078,3234.2,3233.0,40.8]
[1736517074891,0.30929,3233.4,3233.0,40.8]
[1736517075190,3.2078,3233.7,3233.2,0.30929]
[1736517075487,3.2078,3234.1,3233.5,0.30927]
[1736517075689,3.2078,3234.1,3233.5,0.30926]
[1736517075891,0.3093,3233.3,3233.0,40.8]
[1736517076191,3.2078,3233.6,3232.8,3.2078]
[1736517076192,0.30933,3233.0,3232.8,3.2078]
[1736517076391,3.2078,3233.6,3232.8,3.2078]
[1736517076897,3.2078,3233.6,3232.9,40.8]
[1736517077085,3.2078,3233.6,3232.8,3.2078]
[1736517077594,0.3093,3233.2,3232.8,3.2078]
[1736517077890,0.30928,3233.5,3232.9,40.8]
[1736517078194,3.2078,3234.0,3232.9,44.16901977]
[1736517078398,3.2078,3234.4,3233.9,3.36901977]
[1736517078590,3.2078,3235.1,3234.1,3.2078]
[1736517078793,0.30908,3235.6,3235.0,0.30912]
[1736517079095,0.3091,3235.4,3235.2,40.8]
[1736517079889,0.30912,3235.2,3234.7,0.30916]
[1736517080093,3.2078,3235.4,3234.5,3.2078]
[1736517080286,0.30911,3235.3,3234.8,0.30914]
[1736517080486,3.2078,3235.8,3234.4,6.57681977]
[1736517080686,3.2078,3235.8,3235.4,0.30909]
[1736517080886,3.2078,3235.8,3234.9,3.36901977]
[1736517080887,3.2078,3235.8,3234.5,4.6358]
[1736517081294,3.2078,3235.8,3234.7,0.7729]
[1736517081493,3.2078,3235.8,3235.4,0.30909]
[1736517081690,4.3469,3236.1,3235.1,3.2078]
[1736517082997,0.30906,3235.8,3235.3,0.30909]
[1736517083190,0.30907,3235.7,3235.1,3.2078]
[1736517083387,0.30907,3235.7,3235.4,0.30909]
[1736517083592,4.65593,3236.1,3235.7,0.30906]
[1736517083895,0.30903,3236.1,3235.7,0.30906]
[1736517084191,3.2078,3236.2,3235.4,44.16901977]
[1736517084390,3.2078,3236.2,3235.4,40.8]
[1736517084602,0.30902,3236.1,3235.4,40.8]
[1736517084792,3.2078,3235.8,3234.4,6.57681977]
[1736517084994,0.30914,3234.9,3234.5,0.30917]
[1736517085295,3.2078,3234.8,3234.0,3.2078]
[1736517085491,3.2078,3234.8,3233.9,3.36901977]
[1736517085686,0.30922,3234.1,3233.7,4.7355]
[1736517085996,3.2078,3234.8,3233.6,3.2078]
[1736517085997,3.2078,3234.4,3233.6,3.2078]
[1736517086200,0.3092,3234.3,3233.8,0.30924]
[1736517086396,3.51699,3234.4,3233.6,3.2078]
[1736517086592,3.51699,3234.4,3233.9,0.30923]
[1736517087095,3.2078,3234.9,3234.0,3.2078]
[1736517087294,3.2078,3235.8,3235.0,0.30913]
[1736517087501,3.2078,3235.8,3234.4,3.36901977]
[1736517087700,1.54495,3236.6,3235.4,0.30908]
[1736517087701,0.30902,3236.2,3235.4,0.30908]
[1736517087896,3.2078,3236.3,3235.2,3.2078]
[1736517088101,0.77255,3236.2,3234.9,3.36901977]
[1736517088401,0.30907,3235.6,3235.0,0.30913]
[1736517088599,0.30907,3235.6,3234.9,3.36901977]
[1736517088797,3.2078,3235.9,3234.7,3.51695]
[1736517089096,0.30906,3235.8,3235.1,0.30912]
[1736517089294,3.2078,3235.9,3235.1,3.2078]
[1736517089493,0.30905,3235.8,3234.9,3.36901977]
[1736517089698,3.2078,3235.9,3234.9,3.67814977]
[1736517089699,0.30909,3235.5,3234.9,3.67814977]
[1736517089893,3.2078,3235.5,3234.6,3.2078]
[1736517090098,0.30915,3234.8,3234.4,3.36901977]
[1736517090294,3.2078,3234.7,3234.2,3.2078]
[1736517090591,3.2078,3234.7,3233.7,42.901]
[1736517090789,3.2078,3234.3,3233.5,3.2078]
[1736517091190,0.30922,3234.1,3233.6,0.30926]
[1736517091395,0.77291,3234.7,3233.5,3.51707]
[1736517091396,0.30923,3234.0,3233.5,3.51707]
[1736517091600,3.2078,3234.3,3233.5,3.2078]
[1736517091805,0.30925,3233.8,3233.5,3.2078]
[1736517092297,0.30926,3233.6,3233.1,3.2078]
[1736517092499,3.2078,3233.5,3232.7,3.2078]
[1736517092800,3.2078,3233.8,3232.4,3.36901977]
[1736517092995,3.2078,3233.0,3232.3,3.2078]
[1736517093499,3.2078,3233.0,3231.9,3.36901977]
[1736517093500,3.2078,3233.0,3232.4,40.8]
[1736517093705,0.30943,3231.9,3231.3,3.51728]
[1736517093996,3.36901977,3233.4,3231.4,3.36901977]
[1736517093997,3.2078,3232.7,3231.4,3.36901977]
[1736517094299,3.2078,3232.7,3231.7,3.2078]
[1736517094495,3.98105,3233.3,3231.7,3.2078]
[1736517094704,3.98105,3233.3,3232.4,0.30938]
[1736517094705,0.30934,3232.9,3232.4,0.30938]
[1736517095004,3.2078,3233.3,3232.0,3.2078]
[1736517095303,0.30935,3232.7,3232.1,0.3094]
[1736517095493,3.2078,3233.3,3232.0,3.2078]
[1736517095695,3.2078,3233.3,3232.8,0.30934]
[1736517095902,0.30935,3232.8,3232.2,0.30939]
[1736517096099,3.2078,3233.3,3231.9,6.57681977]
[1736517096394,3.2078,3233.3,3232.4,3.2078]
[1736517096599,3.2078,3233.3,3232.8,0.30934]
[1736517096801,0.3093,3233.2,3232.6,3.51715]
[1736517096999,3.2078,3233.7,3232.6,3.2078]
[1736517097301,0.30932,3233.1,3232.5,0.30936]
[1736517097501,0.30935,3232.7,3232.1,0.3094]
[1736517097695,3.2078,3233.2,3232.0,3.2078]
[1736517097898,0.30927,3233.6,3232.8,3.2078]
[1736517098095,3.2078,3233.7,3232.6,3.2078]
[1736517098292,0.3093,3233.3,3232.7,0.30934]
[1736517098705,3.2078,3233.7,3232.6,3.2078]
[1736517098899,12.3462,3234.1,3233.2,3.2078]
[1736517099202,3.2078,3234.5,3233.4,3.36901977]
[1736517099406,3.2078,3234.5,3233.7,3.2078]
[1736517099592,0.3092,3234.3,3233.9,3.2078]
[1736517099793,3.2078,3234.0,3233.2,4.4876]
[1736517099996,3.2078,3234.0,3233.3,44.31709]
[1736517099997,0.30925,3233.8,3233.3,44.31709]
[1736517100193,3.2078,3234.0,3233.3,40.8]
[1736517100405,0.30928,3233.4,3233.3,40.8]
[1736517100608,0.30927,3233.6,3233.3,40.8]
[1736517100804,3.2078,3234.0,3233.3,40.8]
[1736517101006,0.30926,3233.7,3233.3,40.8]
[1736517101202,0.30921,3234.2,3233.6,0.30925]
[1736517101403,0.3092,3234.3,3233.7,0.30925]
[1736517101602,5.65478,3235.3,3234.3,0.30919]
[1736517101603,3.51695,3234.8,3234.3,0.30919]
[1736517101803,3.51695,3234.8,3233.9,3.36901977]
[1736517101804,0.30918,3234.5,3233.9,3.36901977]
[1736517102005,3.2078,3234.8,3233.9,3.36901977]
[1736517102006,0.30917,3234.6,3233.9,3.36901977]
[1736517102205,3.2078,3234.8,3233.9,3.36901977]
[1736517102501,3.2078,3234.8,3233.5,2.102]
[1736517102704,3.2078,3234.3,3233.5,2.102]
[1736517103100,0.30924,3233.8,3233.5,2.102]
[1736517103301,3.2078,3234.3,3233.5,2.102]
[1736517103506,3.2078,3234.3,3233.6,3.2078]
[1736517103700,3.2078,3234.7,3233.5,2.102]
[1736517104007,0.30917,3234.6,3234.0,0.30922]
[1736517104208,0.30917,3234.6,3233.8,3.2078]
[1736517104209,0.30917,3234.6,3234.1,0.30921]
[1736517104396,0.30917,3234.6,3233.8,3.51704]
[1736517104603,3.2078,3234.7,3233.8,3.2078]
[1736517104806,3.2078,3234.7,3233.4,3.36901977]
[1736517104807,0.77302,3234.2,3233.4,3.2078]
[1736517105110,3.2078,3233.5,3232.5,3.2078]
[1736517105305,3.2078,3233.5,3232.4,3.36901977]
[1736517105306,0.30936,3232.7,3232.4,3.36901977]
[1736517105505,0.30938,3232.5,3232.2,40.8]
[1736517105703,0.30938,3232.4,3232.0,3.2078]
[1736517105911,3.98107,3233.2,3232.0,3.2078]
[1736517106100,0.30941,3232.1,3231.4,3.67848977]
[1736517106301,3.2078,3232.4,3231.5,40.8]
[1736517106506,0.30939,3232.3,3231.7,3.2078]
[1736517106708,0.30936,3232.6,3232.0,0.30941]
[1736517106911,0.30938,3232.4,3231.9,3.67843977]
[1736517107111,3.2078,3232.8,3232.2,3.2078]
[1736517107313,3.2078,3232.8,3232.0,3.2078]
[1736517107611,0.30933,3233.0,3232.5,0.30936]
[1736517107806,4.6093,3233.7,3232.9,6.57681977]
[1736517108014,0.30923,3234.0,3233.5,3.51707]
[1736517108209,0.30921,3234.2,3233.6,0.30926]
[1736517108511,3.2078,3234.5,3233.7,3.2078]
[1736517108705,0.30919,3234.4,3233.7,3.51705]
[1736517108908,3.2078,3234.5,3233.5,3.2078]
[1736517109101,0.30919,3234.4,3233.9,0.30923]
[1736517109300,3.2078,3234.5,3233.8,3.2078]
[1736517109503,0.30919,3234.4,3233.9,0.30923]
[1736517109911,3.2078,3234.5,3233.4,3.36901977]
[1736517110108,3.51698,3234.5,3233.7,3.2078]
[1736517110416,0.30925,3233.8,3233.3,0.30929]
[1736517110609,3.2078,3234.1,3233.2,3.2078]
[1736517110804,3.2078,3234.1,3233.2,3.98106]
[1736517111010,3.2078,3234.1,3232.7,2.096]
[1736517111011,3.2078,3234.7,3234.0,3.2078]
[1736517111209,0.30911,3235.2,3234.3,0.30919]
[1736517111513,0.30915,3234.8,3234.3,0.30919]
[1736517111718,5.09967,3235.3,3234.4,40.8]
[1736517111910,0.30915,3234.8,3234.4,41.10919]
[1736517112111,0.30916,3234.7,3234.4,40.8]
[1736517112410,0.30918,3234.5,3234.4,40.8]
[1736517112606,3.2078,3234.9,3234.4,40.8]
[1736517112812,4.3269,3235.3,3234.4,40.8]
[1736517112813,0.30915,3234.8,3234.4,41.10919]
[1736517113019,7.5347,3235.3,3234.4,40.8]
[1736517113227,3.2078,3235.7,3234.7,3.2078]
[1736517113524,3.2078,3235.7,3234.9,3.36901977]
[1736517113814,12.5378,3236.0,3234.5,3.2078]
[1736517114217,3.2078,3235.2,3234.4,42.896]
[1736517114426,0.30916,3234.8,3234.4,42.896]
[1736517114623,3.2078,3234.8,3234.1,3.2078]
[1736517114822,3.2078,3234.8,3233.7,2.096]
[1736517115030,0.77289,3234.8,3233.7,2.096]
[1736517115324,14.79501977,3236.0,3233.7,2.096]
[1736517115325,3.2078,3234.5,3233.7,2.096]
[1736517115528,0.30921,3234.2,3233.7,2.096]
[1736517115824,3.2078,3234.5,3233.7,2.096]
[1736517116015,3.51698,3234.5,3233.7,2.096]
[1736517116326,3.2078,3234.5,3233.6,3.2078]
[1736517116516,3.2078,3234.5,3233.8,0.30924]
[1736517116722,3.2078,3234.5,3233.6,3.2078]
[1736517116925,0.30921,3234.2,3233.6,3.2078]
[1736517117128,3.2078,3234.5,3234.1,0.30921]
[1736517117321,3.2078,3234.5,3233.9,3.36901977]
[1736517117522,3.2078,3234.5,3234.0,0.30922]
[1736517117826,3.2078,3235.2,3234.4,0.30918]
[1736517118022,3.2078,3235.2,3234.2,3.2078]
[1736517118931,0.30913,3235.0,3234.4,0.30918]
[1736517119132,0.30914,3234.9,3234.4,0.30918]
[1736517119429,0.30918,3234.5,3234.2,3.2078]
[1736517119625,0.3092,3234.3,3233.3,40.8]
[1736517119930,3.2078,3233.9,3233.2,3.2078]
[1736517120228,0.30933,3232.9,3232.8,3.2078]
[1736517120525,0.30936,3232.6,3232.5,4.77502175]
[1736517120728,3.51716,3232.6,3232.5,4.77502175]
[1736517121026,0.3094,3232.2,3232.0,40.8]
[1736517121427,0.30941,3232.1,3232.0,40.8]
[1736517121833,0.30943,3231.9,3231.6,4.77502175]
[1736517122028,3.2078,3232.2,3231.4,3.2078]
[1736517122229,0.30945,3231.7,3231.5,40.8]
[1736517122429,0.30944,3231.8,3231.5,40.8]
[1736517122726,3.2078,3232.6,3232.1,0.30941]
[1736517122934,3.2078,3232.6,3231.6,3.2078]
[1736517123322,0.30944,3231.8,3231.6,3.2078]
[1736517123523,3.2078,3232.2,3231.5,40.8]
[1736517124138,0.30941,3232.1,3231.5,41.10946]
[1736517124328,3.2078,3232.8,3232.0,3.2078]
[1736517124630,3.2078,3232.8,3231.5,44.0078]
[1736517124831,0.30933,3233.0,3232.3,0.30938]
[1736517125029,3.2078,3232.9,3232.1,3.2078]
[1736517125733,3.2078,3233.4,3232.1,3.2078]
[1736517126332,4.58200053,3233.9,3231.9,3.36901977]
[1736517126333,3.2078,3233.0,3231.9,3.36901977]
[1736517126530,0.77324,3233.3,3231.9,3.36901977]
[1736517126531,0.77324,3233.3,3232.1,3.2078]
[1736517126726,0.30931,3233.2,3232.6,0.30935]
[1736517126932,3.2078,3233.4,3232.5,3.2078]
[1736517127231,0.30924,3233.8,3233.1,0.30931]
[1736517127422,3.43646554,3233.9,3232.9,6.57681977]
[1736517127627,3.43646554,3233.9,3233.4,0.30928]
[1736517127826,3.43646554,3233.9,3232.9,3.2078]
[1736517128025,0.30926,3233.6,3233.0,0.30931]
[1736517128225,0.30927,3233.6,3233.0,0.30932]
[1736517128421,0.3093,3233.2,3233.1,40.8]
[1736517128626,3.2078,3233.6,3233.2,0.3093]
[1736517128827,3.2078,3233.6,3233.4,0.30928]
[1736517129033,0.30924,3233.9,3233.3,0.30929]
[1736517129235,3.2078,3234.1,3233.1,40.8]
[1736517129437,3.2078,3233.7,3233.1,40.8]
[1736517129932,0.30932,3233.0,3232.2,0.30939]
[1736517130133,3.2078,3232.7,3232.0,3.2078]
[1736517130535,3.2078,3232.3,3231.5,40.8]
[1736517130926,0.30945,3231.7,3231.5,40.8]
[1736517131333,0.3094,3232.2,3231.5,40.8]
[1736517131534,0.77344,3232.5,3230.6,3.2078]
[1736517131535,3.2078,3231.8,3230.6,3.2078]
[1736517131729,3.2078,3231.0,3230.2,3.2078]
[1736517131933,3.2078,3230.6,3230.2,40.8]
[1736517132233,3.51736,3230.6,3230.2,40.8]
[1736517132429,3.2078,3230.6,3230.2,40.8]
[1736517132625,0.30948,3231.4,3230.4,0.30957]
[1736517132831,3.2078,3231.5,3230.7,3.2078]
[1736517133128,3.2078,3232.0,3230.7,3.2078]
[1736517133333,3.2078,3232.0,3230.7,3.51734]
[1736517133334,0.30948,3231.4,3230.7,3.51734]
[1736517133533,3.2078,3232.0,3230.8,0.30953]
[1736517133835,3.2078,3232.0,3230.7,3.2078]
[1736517134340,3.2078,3231.6,3230.7,3.2078]
[1736517134527,0.30949,3231.3,3230.7,3.51734]
[1736517134730,3.2078,3231.6,3230.7,3.2078]
[1736517134934,0.30953,3230.8,3230.7,3.2078]
[1736517135431,0.30953,3230.8,3230.2,40.8]
[1736517135432,3.2078,3230.8,3230.2,40.8]
[1736517135636,0.30956,3230.5,3230.2,40.8]
[1736517135827,0.3096,3230.2,3229.6,4.76234]
[1736517136033,0.30962,3229.9,3229.5,3.36901977]
[1736517136230,0.30963,3229.8,3229.4,3.2078]
[1736517136427,3.2078,3230.2,3229.4,3.2078]
[1736517136428,3.2078,3230.6,3229.5,40.8]
[1736517136633,3.2078,3230.6,3229.8,0.30963]
[1736517136841,3.2078,3230.6,3229.7,0.30963]
[1736517137029,3.2078,3230.6,3229.5,44.16901977]
[1736517137230,3.2078,3230.0,3229.5,40.8]
[1736517137427,3.2078,3230.0,3229.3,3.2078]
[1736517137633,0.30963,3229.8,3229.3,3.2078]
[1736517137835,0.30954,3230.7,3229.9,0.30961]
[1736517138036,9.4982303,3231.8,3230.1,6.57681977]
[1736517138037,3.2078,3231.2,3230.1,6.57681977]
[1736517138230,3.2078,3231.7,3230.7,3.2078]
[1736517138436,0.3095,3231.2,3230.7,3.2078]
[1736517138637,3.2078,3231.7,3230.7,3.2078]
[1736517138838,0.30949,3231.3,3230.7,3.51734]
[1736517139134,3.2078,3231.7,3230.7,3.2078]
[1736517139341,3.2078,3231.7,3230.8,0.30952]
[1736517139543,3.2078,3231.4,3230.3,3.2078]
[1736517139942,0.30957,3230.5,3230.3,3.2078]
[1736517140238,0.30959,3230.2,3229.8,3.2078]
[1736517140432,3.2078,3230.8,3229.8,3.2078]
[1736517140837,0.30954,3230.7,3229.8,3.2078]
[1736517141038,3.2078,3230.8,3229.8,3.2078]
[1736517141239,0.30954,3230.7,3230.1,0.30959]
[1736517141436,3.2078,3231.2,3229.8,3.2078]
[1736517141641,3.2078,3230.8,3229.8,3.2078]
[1736517141844,3.2078,3230.8,3230.2,0.30958]
[1736517142037,3.2078,3230.8,3229.8,3.2078]
[1736517142237,3.51733,3230.8,3230.2,0.30958]
[1736517142439,0.77364,3231.7,3230.2,0.30958]
[1736517142440,3.2078,3231.4,3230.2,3.2078]
[1736517142746,4.7167,3231.8,3230.2,3.51739]
[1736517142747,0.30954,3230.8,3230.2,3.51739]
[1736517142946,0.30956,3230.6,3229.9,0.30961]
[1736517143152,3.2078,3230.6,3229.8,3.2078]
[1736517143445,3.2078,3230.6,3229.9,40.8]
[1736517143840,3.51735,3230.6,3229.9,40.8]
[1736517144036,3.2078,3231.7,3230.2,6.57681977]
[1736517144233,0.30942,3232.1,3231.4,0.30947]
[1736517144438,3.2078,3232.2,3231.1,3.2078]
[1736517144740,3.2078,3232.6,3231.4,6.57681977]
[1736517144941,3.43646554,3232.7,3232.6,0.30936]
[1736517145252,3.43646554,3232.7,3232.3,3.2078]
[1736517145444,3.43646554,3232.7,3232.6,0.30936]
[1736517145753,0.30932,3233.1,3232.6,40.8]
[1736517146044,3.2078,3233.6,3232.6,41.10936]
[1736517146244,3.2078,3233.6,3232.8,3.2078]
[1736517146735,3.43646554,3234.0,3233.3,3.2078]
[1736517147039,3.43646554,3234.0,3233.9,0.30924]
[1736517147435,3.43646554,3234.0,3233.9,3.2078]
[1736517147640,9.2445,3234.7,3234.0,0.30922]
[1736517147641,9.55366,3234.7,3234.0,0.30922]
[1736517147840,9.55366,3234.7,3233.5,3.2078]
[1736517147841,0.30923,3234.0,3233.5,3.2078]
[1736517148037,3.2078,3234.5,3233.5,3.2078]
[1736517148240,3.2078,3233.8,3233.0,3.2078]
[1736517148448,0.30927,3233.6,3232.9,5.60813]
[1736517148644,3.2078,3233.8,3232.9,5.2988]
[1736517148645,0.30928,3233.4,3232.9,5.2988]
[1736517148845,3.2078,3233.8,3232.9,5.2988]
[1736517149041,3.2078,3234.7,3233.4,3.36901977]
[1736517149242,3.2078,3234.8,3233.8,3.2078]
[1736517149446,0.30917,3234.7,3233.9,0.30923]
[1736517149639,3.2078,3235.2,3233.5,3.2078]
[1736517149844,3.2078,3235.2,3233.9,6.57681977]
[1736517150049,3.2078,3235.2,3234.7,0.30916]
[1736517150249,3.2078,3235.2,3234.4,3.2078]
[1736517150448,3.2078,3235.2,3234.0,6.5106]
[1736517150449,3.2078,3235.2,3234.0,9.7184]
[1736517150951,0.30916,3234.8,3234.1,0.30921]
[1736517151254,0.30911,3235.2,3234.5,0.30918]
[1736517151548,4.7799,3235.3,3234.4,3.2078]
[1736517151747,3.2078,3235.6,3234.4,6.57681977]
[1736517151951,0.30909,3235.4,3234.9,3.2078]
[1736517152144,3.2078,3235.6,3234.9,3.2078]
[1736517152746,3.51687,3235.6,3234.9,3.51693]
[1736517152949,3.2078,3235.6,3235.0,0.30912]
[1736517153249,0.30909,3235.5,3234.9,3.2078]
[1736517153554,3.2078,3235.6,3234.9,3.2078]
[1736517153744,3.2078,3236.0,3234.9,6.57681977]
[1736517153945,3.2078,3235.6,3234.9,3.2078]
[1736517154253,0.30904,3236.0,3235.0,0.30913]
[1736517154450,3.2078,3236.2,3235.3,3.2078]
[1736517154643,4.791,3236.8,3236.1,3.51682]
[1736517154844,7.92166554,3237.4,3236.5,3.2078]
[1736517155549,8.24512276,3239.0,3238.1,3.2078]
[1736517155852,13.68317577,3239.6,3238.9,6.57681977]
[1736517156052,3.2078,3241.1,3237.8,9.279]
[1736517156053,7.96091697,3240.2,3239.5,6.57681977]
[1736517156246,9.194,3241.4,3240.0,6.57681977]
[1736517156552,3.2078,3241.3,3240.0,6.57681977]
[1736517156756,3.2078,3240.5,3240.0,3.36901977]
[1736517156948,3.2078,3240.5,3239.5,3.36901977]
[1736517157258,3.2078,3240.1,3239.5,44.16901977]
[1736517157451,3.2078,3240.1,3239.5,3.36901977]
[1736517157647,3.2078,3239.6,3238.5,6.57681977]
[1736517157844,3.2078,3238.8,3238.0,3.36901977]
[1736517158054,3.2078,3238.1,3237.8,3.36901977]
[1736517158351,3.2078,3238.1,3236.7,6.8111]
[1736517158352,3.2078,3237.9,3237.2,3.2078]
[1736517158553,3.2078,3237.9,3237.8,0.30886]
[1736517158744,3.2078,3238.5,3237.6,0.30887]
[1736517158950,3.2078,3238.5,3238.3,3.36901977]
[1736517159755,0.30881,3238.4,3237.8,3.36901977]
[1736517160050,3.2078,3237.9,3237.3,3.36901977]
[1736517160558,3.2078,3237.9,3237.8,3.36901977]
[1736517160759,3.51658,3238.8,3237.8,3.67787977]
[1736517160949,3.2078,3238.4,3237.8,3.36901977]
[1736517161151,3.2078,3238.6,3238.3,3.67782977]
[1736517161347,3.2078,3239.0,3238.3,3.36901977]
[1736517161647,3.2078,3239.0,3238.8,3.36901977]
[1736517162456,0.42749278,3239.0,3238.8,3.36901977]
[1736517164448,0.73625278,3239.0,3238.8,3.36901977]
[1736517164655,0.42749278,3239.0,3238.8,3.36901977]
[1736517165049,0.42749278,3239.0,3238.3,3.36901977]
[1736517165249,0.42749278,3239.0,3238.8,3.36901977]
[1736517165451,8.9206,3239.5,3238.9,3.2078]
[1736517165452,4.4115,3239.5,3238.9,3.2078]
[1736517165653,4.4115,3239.5,3239.4,3.36901977]
[1736517165855,4.4115,3239.5,3238.9,3.36901977]
[1736517166062,0.08709204,3239.5,3238.9,3.36901977]
[1736517166253,3.51654,3239.2,3238.9,3.36901977]
[1736517166452,3.2078,3239.2,3238.9,3.36901977]
[1736517166653,0.30875,3239.0,3238.9,3.36901977]
[1736517166952,0.30875,3239.0,3238.5,3.2078]
[1736517167151,3.2078,3238.8,3237.9,3.36901977]
[1736517167362,3.2078,3238.2,3237.9,3.36901977]
[1736517167560,0.30879,3238.6,3237.9,3.36901977]
[1736517167753,3.2078,3238.4,3237.9,3.36901977]
[1736517168156,3.51661,3238.4,3237.9,3.36901977]
[1736517168357,3.2078,3238.0,3237.4,3.36901977]
[1736517168560,3.2078,3238.1,3237.4,3.36901977]
[1736517168856,3.2078,3238.8,3237.9,3.36901977]
[1736517169058,3.2078,3238.8,3237.5,40.8]
[1736517169059,3.2078,3239.2,3238.7,3.36901977]
[1736517169357,3.2078,3239.8,3239.1,3.36901977]
[1736517169560,0.30873,3239.2,3238.6,3.36901977]
[1736517169965,0.77153,3240.5,3238.6,3.36901977]
[1736517169966,3.2078,3239.9,3238.6,3.36901977]
[1736517170155,3.2078,3239.8,3239.1,3.36901977]
[1736517170458,3.2078,3239.4,3238.6,3.36901977]
[1736517170760,0.30872,3239.3,3238.6,3.36901977]
[1736517171456,3.2078,3239.4,3238.6,3.36901977]
[1736517171762,7.7793,3240.0,3239.1,3.36901977]
[1736517172351,0.30869,3239.7,3239.1,3.36901977]
[1736517172753,0.30869,3239.6,3239.1,3.36901977]
[1736517173158,4.5715,3240.0,3239.1,3.36901977]
[1736517173455,4.5715,3240.0,3239.7,3.36901977]
[1736517173657,3.2078,3240.5,3239.7,3.36901977]
[1736517173861,0.30864,3240.2,3239.7,3.36901977]
[1736517174162,3.2078,3240.5,3239.7,3.36901977]
[1736517174455,0.30861,3240.5,3239.9,3.51646]
[1736517174654,3.2078,3242.5,3240.4,6.57681977]
[1736517174851,3.2078,3243.0,3242.0,3.36901977]
[1736517175158,0.30839,3242.9,3242.0,3.36901977]
[1736517175357,4.7887,3243.2,3242.0,3.36901977]
[1736517175553,0.30836,3243.1,3242.5,3.36901977]
[1736517175753,4.7887,3243.2,3242.5,3.36901977]
[1736517175954,0.30841,3242.6,3242.3,3.2078]
[1736517176257,3.2078,3242.4,3241.8,3.2078]
[1736517176462,0.30848,3241.8,3241.5,3.36901977]
[1736517176656,3.2078,3242.2,3241.5,3.36901977]
[1736517176864,0.30848,3241.9,3241.5,3.36901977]
[1736517177059,3.20778,3242.2,3241.5,3.36901977]
[1736517177258,3.2078,3241.8,3241.0,3.36901977]
[1736517177461,0.30852,3241.4,3241.0,3.36901977]
[1736517177758,3.2078,3241.8,3241.0,3.36901977]
[1736517177956,3.20779,3241.8,3241.0,3.36901977]
[1736517178365,3.2078,3241.4,3240.5,6.57681977]
[1736517178561,3.51638,3240.8,3240.5,3.36901977]
[1736517178763,3.2078,3240.9,3240.5,3.36901977]
[1736517178957,0.30862,3240.4,3240.0,6.57681977]
[1736517179158,2.7078,3240.9,3240.0,6.57681977]
[1736517179461,0.30864,3240.1,3240.0,3.2078]
[1736517179659,3.2078,3240.1,3239.5,3.36901977]
[1736517179859,0.30866,3240.0,3239.5,3.36901977]
[1736517180058,0.30865,3240.1,3239.5,3.67770977]
[1736517180362,3.2078,3240.5,3239.5,3.36901977]
[1736517180565,3.2078,3240.0,3239.4,3.2078]
[1736517180757,0.30866,3239.9,3239.4,3.2078]
[1736517180953,4.882,3240.6,3239.5,3.36901977]
[1736517181259,3.2078,3241.2,3240.2,3.2078]
[1736517181457,3.2078,3240.8,3240.2,3.2078]
[1736517181659,0.30864,3240.1,3240.0,3.36901977]
[1736517181859,3.2078,3240.3,3239.5,3.36901977]
[1736517182265,4.5964,3240.6,3240.0,3.36901977]
[1736517182457,3.2078,3240.7,3240.0,3.36901977]
[1736517182660,3.2078,3241.2,3240.5,3.36901977]
[1736517182966,8.9179,3241.5,3240.8,0.30857]
[1736517183158,8.9179,3241.5,3241.0,3.36901977]
[1736517183362,0.3085,3241.6,3241.2,3.2078]
[1736517183659,7.8042,3242.0,3241.2,3.2078]
[1736517183858,3.2078,3241.6,3241.0,3.36901977]
[1736517184062,0.77128,3241.5,3240.6,3.2078]
[1736517184267,3.0164,3241.6,3240.7,40.8]
[1736517184459,3.2078,3241.2,3240.7,40.8]
[1736517184658,0.30858,3240.8,3240.7,40.8]
[1736517185069,4.3808,3241.5,3240.7,40.8]
[1736517185376,0.30855,3241.2,3241.0,3.36901977]
[1736517185757,4.8808,3241.5,3241.0,6.57681977]
[1736517186074,0.5,3241.7,3241.3,0.30853]
[1736517186261,0.5,3241.7,3241.5,3.36901977]
[1736517186468,0.3085,3241.6,3241.5,3.36901977]
[1736517186661,0.80849,3241.7,3241.5,3.36901977]
[1736517186858,0.5,3241.7,3241.5,3.36901977]
[1736517187058,3.2078,3243.9,3241.6,5.2898]
[1736517187368,3.97853,3243.9,3242.8,3.36901977]
[1736517187667,3.2078,3243.5,3242.7,44.0078]
[1736517187866,13.7598,3243.8,3242.7,44.0078]
[1736517188067,13.7598,3243.8,3243.2,3.2078]
[1736517188368,3.2078,3244.3,3243.2,3.2078]